[Event "Late-Titled-Tuesday-Blitz-September-26-2023"]
[Site "Chess.com"]
[Date "2023.09.26"]
[Round "5"]
[White "Lennis93"]
[Black "Lady_Nika"]
[Result "1/2-1/2"]
[WhiteElo "2722"]
[BlackElo "2514"]
[TimeControl "180+1"]
[EndTime "14:52:43 PDT"]
[Termination "Game drawn by repetition"]

1. Nf3 {[%clk 0:03:00.9]} 1... d5 {[%clk 0:02:58.1]} 2. c4 {[%clk 0:03:00.7]}
2... c6 {[%clk 0:02:57.8]} 3. d4 {[%clk 0:03:00.2]} 3... e6 {[%clk 0:02:55.5]}
4. Nc3 {[%clk 0:02:59.9]} 4... f5 {[%clk 0:02:55.5]} 5. Bf4 {[%clk 0:02:48.8]}
5... Nf6 {[%clk 0:02:55.2]} 6. e3 {[%clk 0:02:49.2]} 6... Bd6 {[%clk 0:02:54.8]}
7. Bxd6 {[%clk 0:02:47.8]} 7... Qxd6 {[%clk 0:02:54.5]} 8. Qb3 {[%clk
0:02:45.1]} 8... O-O {[%clk 0:02:53]} 9. Qa3 {[%clk 0:02:45.8]} 9... Qd8 {[%clk
0:02:42]} 10. Be2 {[%clk 0:02:41.7]} 10... Ne4 {[%clk 0:02:38.2]} 11. Nxe4
{[%clk 0:02:38.6]} 11... fxe4 {[%clk 0:02:37.8]} 12. Ne5 {[%clk 0:02:39.1]}
12... Nd7 {[%clk 0:02:37]} 13. Nxd7 {[%clk 0:02:38.3]} 13... Bxd7 {[%clk
0:02:36.2]} 14. O-O {[%clk 0:02:34.8]} 14... Be8 {[%clk 0:02:33.2]} 15. b4
{[%clk 0:02:31.7]} 15... a6 {[%clk 0:02:32.8]} 16. c5 {[%clk 0:02:27.9]} 16...
Qg5 {[%clk 0:02:26.2]} 17. Qc3 {[%clk 0:02:26]} 17... Rf6 {[%clk 0:02:18.9]} 18.
f4 {[%clk 0:02:24.7]} 18... exf3 {[%clk 0:02:17.3]} 19. Rxf3 {[%clk 0:02:22.4]}
19... Rxf3 {[%clk 0:02:11.9]} 20. Bxf3 {[%clk 0:02:23.3]} 20... Bg6 {[%clk
0:02:11.8]} 21. a4 {[%clk 0:02:21.9]} 21... h5 {[%clk 0:02:07.1]} 22. b5 {[%clk
0:02:20.4]} 22... axb5 {[%clk 0:02:05.6]} 23. h4 {[%clk 0:02:12.7]} 23... Qxh4
{[%clk 0:01:55]} 24. axb5 {[%clk 0:02:12.3]} 24... Rxa1+ {[%clk 0:01:54.4]} 25.
Qxa1 {[%clk 0:02:13.2]} 25... Kh7 {[%clk 0:01:41.2]} 26. b6 {[%clk 0:02:11.7]}
26... Qg5 {[%clk 0:01:38.8]} 27. Kf2 {[%clk 0:02:10.8]} 27... Qh4+ {[%clk
0:01:37.7]} 28. Ke2 {[%clk 0:02:10.8]} 28... Be4 {[%clk 0:01:34.4]} 29. Qa7
{[%clk 0:02:08.9]} 29... Bxf3+ {[%clk 0:01:33.3]} 30. gxf3 {[%clk 0:02:09.4]}
30... Qh2+ {[%clk 0:01:29.1]} 31. Kd3 {[%clk 0:02:09.5]} 31... Qh1 {[%clk
0:01:28.5]} 32. Qxb7 {[%clk 0:02:09.2]} 32... Qd1+ {[%clk 0:01:27.8]} 33. Kc3
{[%clk 0:02:09.3]} 33... Qc1+ {[%clk 0:01:27.9]} 34. Kb3 {[%clk 0:02:09.2]}
34... Qxe3+ {[%clk 0:01:24.7]} 35. Kc2 {[%clk 0:02:05.5]} 35... Qe2+ {[%clk
0:01:23.3]} 36. Kc1 {[%clk 0:02:05.7]} 36... Qf1+ {[%clk 0:01:22.3]} 37. Kd2
{[%clk 0:02:05.4]} 37... Qf2+ {[%clk 0:01:22.1]} 38. Kc1 {[%clk 0:02:04.5]}
38... Qg1+ {[%clk 0:01:17.9]} 39. Kc2 {[%clk 0:02:03.5]} 39... Qf2+ {[%clk
0:01:17]} 40. Kc3 {[%clk 0:02:00.8]} 40... Qe3+ {[%clk 0:01:14.4]} 41. Kc2
{[%clk 0:02:00.5]} 41... Qe2+ {[%clk 0:01:06.4]} 42. Kc1 {[%clk 0:01:53.6]}
42... Qc4+ {[%clk 0:01:05.8]} 43. Kb1 {[%clk 0:01:53.5]} 43... Qb3+ {[%clk
0:01:03.9]} 44. Kc1 {[%clk 0:01:53.8]} 44... Qc3+ {[%clk 0:01:03.6]} 45. Kb1
{[%clk 0:01:53.8]} 45... Qd3+ {[%clk 0:01:00.7]} 46. Kc1 {[%clk 0:01:53.4]}
46... Qc3+ {[%clk 0:01:00.4]} 47. Kb1 {[%clk 0:01:52.2]} 47... Qb3+ {[%clk
0:01:00.5]} 48. Kc1 {[%clk 0:01:51.6]} 48... Qc3+ {[%clk 0:01:00.5]} 1/2-1/2

[Event "Late-Titled-Tuesday-Blitz-September-26-2023"]
[Site "Chess.com"]
[Date "2023.09.26"]
[Round "5"]
[White "QuintilianoR"]
[Black "Shuvalov"]
[Result "1-0"]
[WhiteElo "2664"]
[BlackElo "2483"]
[TimeControl "180+1"]
[EndTime "14:52:49 PDT"]
[Termination "QuintilianoR won by resignation"]

1. e4 {[%clk 0:03:00.9]} 1... e6 {[%clk 0:02:59.9]} 2. d4 {[%clk 0:02:59.2]}
2... d5 {[%clk 0:03:00.1]} 3. Bd3 {[%clk 0:02:57.5]} 3... c5 {[%clk 0:02:59.5]}
4. exd5 {[%clk 0:02:56.6]} 4... exd5 {[%clk 0:02:59.3]} 5. Nf3 {[%clk
0:02:55.1]} 5... c4 {[%clk 0:02:59.2]} 6. Be2 {[%clk 0:02:54.7]} 6... Nf6 {[%clk
0:02:58.6]} 7. O-O {[%clk 0:02:54]} 7... Be7 {[%clk 0:02:57.7]} 8. b3 {[%clk
0:02:52.4]} 8... cxb3 {[%clk 0:02:58.6]} 9. axb3 {[%clk 0:02:52.8]} 9... O-O
{[%clk 0:02:59.1]} 10. c4 {[%clk 0:02:51.7]} 10... Nc6 {[%clk 0:02:59]} 11. Nc3
{[%clk 0:02:49.3]} 11... Bf5 {[%clk 0:02:56.7]} 12. h3 {[%clk 0:02:45.5]} 12...
Bb4 {[%clk 0:02:56.1]} 13. Nxd5 {[%clk 0:02:16.2]} 13... Nxd5 {[%clk 0:02:55.7]}
14. cxd5 {[%clk 0:02:17.1]} 14... Qxd5 {[%clk 0:02:55.8]} 15. Bc4 {[%clk
0:02:17.5]} 15... Qd7 {[%clk 0:02:50.1]} 16. d5 {[%clk 0:02:16.4]} 16... Ne7
{[%clk 0:02:34.1]} 17. Bb2 {[%clk 0:02:13.2]} 17... Bg6 {[%clk 0:01:53]} 18.
Rxa7 {[%clk 0:01:29.7]} 18... Rxa7 {[%clk 0:01:50.7]} 19. Qd4 {[%clk 0:01:29.1]}
19... Nf5 {[%clk 0:01:51]} 20. Qxa7 {[%clk 0:01:28.2]} 20... Rc8 {[%clk
0:01:37.4]} 21. Ne5 {[%clk 0:01:20.9]} 21... Qe7 {[%clk 0:01:32.4]} 22. Nd3
{[%clk 0:01:16.2]} 22... Bd6 {[%clk 0:01:28]} 23. Re1 {[%clk 0:01:12.3]} 23...
Qc7 {[%clk 0:01:19.2]} 24. Qa1 {[%clk 0:01:07.7]} 24... f6 {[%clk 0:01:17.3]}
25. Nf4 {[%clk 0:00:58.1]} 25... Bb4 {[%clk 0:00:51.2]} 26. d6+ {[%clk
0:00:55.8]} 1-0

[Event "Late-Titled-Tuesday-Blitz-September-26-2023"]
[Site "Chess.com"]
[Date "2023.09.26"]
[Round "5"]
[White "carloseduar100"]
[Black "dorpato"]
[Result "1-0"]
[WhiteElo "2325"]
[BlackElo "2026"]
[TimeControl "180+1"]
[EndTime "14:53:01 PDT"]
[Termination "carloseduar100 won on time"]

1. d4 {[%clk 0:03:00]} 1... Nf6 {[%clk 0:02:57.8]} 2. Bg5 {[%clk 0:03:00.2]}
2... d5 {[%clk 0:02:54.8]} 3. Nd2 {[%clk 0:03:00.1]} 3... h6 {[%clk 0:02:53.6]}
4. Bxf6 {[%clk 0:03:00.1]} 4... exf6 {[%clk 0:02:50.1]} 5. g3 {[%clk 0:03:00.9]}
5... c6 {[%clk 0:02:46.7]} 6. Bg2 {[%clk 0:03:01.7]} 6... Bf5 {[%clk 0:02:46.6]}
7. Ngf3 {[%clk 0:03:01.5]} 7... Bd6 {[%clk 0:02:41.8]} 8. O-O {[%clk 0:03:01.1]}
8... O-O {[%clk 0:02:39.3]} 9. c4 {[%clk 0:03:01]} 9... dxc4 {[%clk 0:02:09.1]}
10. Nxc4 {[%clk 0:02:59.4]} 10... Bc7 {[%clk 0:02:08.5]} 11. Qb3 {[%clk
0:02:50.4]} 11... b6 {[%clk 0:01:51.5]} 12. Rac1 {[%clk 0:02:32.6]} 12... Be6
{[%clk 0:01:38.4]} 13. Qd3 {[%clk 0:02:32.6]} 13... Nd7 {[%clk 0:01:14.5]} 14.
e4 {[%clk 0:02:27.9]} 14... Bxc4 {[%clk 0:01:06.8]} 15. Qxc4 {[%clk 0:02:17.2]}
15... c5 {[%clk 0:01:05.5]} 16. Rfd1 {[%clk 0:02:15.8]} 16... Qe7 {[%clk
0:01:00.1]} 17. e5 {[%clk 0:02:15]} 17... fxe5 {[%clk 0:00:52.4]} 18. dxe5
{[%clk 0:02:14.1]} 18... Nxe5 {[%clk 0:00:52.4]} 19. Nxe5 {[%clk 0:02:13.7]}
19... Bxe5 {[%clk 0:00:45.5]} 20. Bxa8 {[%clk 0:02:13.5]} 20... Rxa8 {[%clk
0:00:45.2]} 21. Re1 {[%clk 0:02:13.4]} 21... Qf6 {[%clk 0:00:41.9]} 22. Qd5
{[%clk 0:02:07.4]} 22... Rf8 {[%clk 0:00:31.3]} 23. Qxe5 {[%clk 0:02:05.7]}
23... Qf3 {[%clk 0:00:24.3]} 24. Rcd1 {[%clk 0:02:02]} 24... c4 {[%clk
0:00:20.9]} 25. Qe4 {[%clk 0:01:59.4]} 25... Qf6 {[%clk 0:00:12.2]} 26. Qxc4
{[%clk 0:01:58.1]} 26... Qxb2 {[%clk 0:00:07.7]} 27. Rd7 {[%clk 0:01:57.5]}
27... a5 {[%clk 0:00:04.3]} 28. Ree7 {[%clk 0:01:56.7]} 28... b5 {[%clk
0:00:03.8]} 29. Qd5 {[%clk 0:01:43.9]} 29... Qc1+ {[%clk 0:00:02.9]} 30. Kg2
{[%clk 0:01:43.6]} 1-0

[Event "Late-Titled-Tuesday-Blitz-September-26-2023"]
[Site "Chess.com"]
[Date "2023.09.26"]
[Round "5"]
[White "cristiano78"]
[Black "AsaHoffmann"]
[Result "0-1"]
[WhiteElo "2248"]
[BlackElo "2404"]
[TimeControl "180+1"]
[EndTime "14:53:05 PDT"]
[Termination "AsaHoffmann won by resignation"]

1. d4 {[%clk 0:03:00.9]} 1... Nf6 {[%clk 0:02:47.4]} 2. c4 {[%clk 0:03:00.8]}
2... c5 {[%clk 0:02:46.4]} 3. d5 {[%clk 0:03:01]} 3... e5 {[%clk 0:02:45.1]} 4.
Nc3 {[%clk 0:03:01]} 4... d6 {[%clk 0:02:44.5]} 5. e4 {[%clk 0:03:01.2]} 5...
Be7 {[%clk 0:02:44.2]} 6. Be2 {[%clk 0:03:01]} 6... Nbd7 {[%clk 0:02:38.1]} 7.
g4 {[%clk 0:03:00.5]} 7... Nf8 {[%clk 0:02:37.4]} 8. g5 {[%clk 0:03:00]} 8...
N6d7 {[%clk 0:02:37]} 9. Nf3 {[%clk 0:02:50.5]} 9... Ng6 {[%clk 0:02:34.2]} 10.
h4 {[%clk 0:02:47.2]} 10... h6 {[%clk 0:02:32.8]} 11. gxh6 {[%clk 0:02:41.5]}
11... gxh6 {[%clk 0:02:32.1]} 12. h5 {[%clk 0:02:41.5]} 12... Nh4 {[%clk
0:02:24.2]} 13. Be3 {[%clk 0:02:38.7]} 13... Ng2+ {[%clk 0:02:22.3]} 14. Kd2
{[%clk 0:02:38.2]} 14... Nxe3 {[%clk 0:02:21.7]} 15. fxe3 {[%clk 0:02:38.4]}
15... Nf6 {[%clk 0:02:17.8]} 16. Qc2 {[%clk 0:02:30.9]} 16... a6 {[%clk
0:02:16.4]} 17. Rag1 {[%clk 0:02:30.3]} 17... Qa5 {[%clk 0:02:15.4]} 18. a3
{[%clk 0:02:24.2]} 18... Bd7 {[%clk 0:02:13.3]} 19. Nh4 {[%clk 0:02:18.2]} 19...
b5 {[%clk 0:02:11.6]} 20. cxb5 {[%clk 0:02:18]} 20... axb5 {[%clk 0:02:11.3]}
21. Nf5 {[%clk 0:02:01.3]} 21... b4 {[%clk 0:02:07.8]} 22. axb4 {[%clk
0:01:47.8]} 22... cxb4 {[%clk 0:02:07]} 23. Nxe7 {[%clk 0:01:09.7]} 23... bxc3+
{[%clk 0:02:05.7]} 24. bxc3 {[%clk 0:01:10.1]} 24... Kxe7 {[%clk 0:02:04.3]} 25.
Ra1 {[%clk 0:00:55.2]} 25... Qxa1 {[%clk 0:02:02.6]} 26. Rxa1 {[%clk 0:00:55.6]}
26... Rxa1 {[%clk 0:02:02]} 27. Qb2 {[%clk 0:00:53.9]} 27... Rha8 {[%clk
0:01:52.8]} 28. Kd3 {[%clk 0:00:46.8]} 28... R1a5 {[%clk 0:01:42.5]} 29. Qb7
{[%clk 0:00:42.5]} 29... R8a7 {[%clk 0:01:40.2]} 30. Qb8 {[%clk 0:00:42.4]}
30... Bb5+ {[%clk 0:01:37.7]} 31. c4 {[%clk 0:00:42.7]} 31... Ra3+ {[%clk
0:01:37.6]} 32. Kc2 {[%clk 0:00:41.1]} 32... Ra2+ {[%clk 0:01:37.2]} 33. Kb3
{[%clk 0:00:39.5]} 33... R7a3+ {[%clk 0:01:35.1]} 34. Kb4 {[%clk 0:00:39.5]}
34... Bd7 {[%clk 0:01:35]} 35. Bd1 {[%clk 0:00:24.6]} 35... Rb2+ {[%clk
0:01:33.6]} 0-1

[Event "Late-Titled-Tuesday-Blitz-September-26-2023"]
[Site "Chess.com"]
[Date "2023.09.26"]
[Round "5"]
[White "roxannyzoldyck"]
[Black "IngOscarArdila"]
[Result "0-1"]
[WhiteElo "2191"]
[BlackElo "2383"]
[TimeControl "180+1"]
[EndTime "14:53:05 PDT"]
[Termination "IngOscarArdila won by checkmate"]

1. e4 {[%clk 0:03:00]} 1... e5 {[%clk 0:02:59.8]} 2. Nf3 {[%clk 0:03:00.2]} 2...
Nf6 {[%clk 0:03:00.4]} 3. Nxe5 {[%clk 0:03:00.2]} 3... d6 {[%clk 0:03:00.5]} 4.
Nf3 {[%clk 0:03:00.6]} 4... Nxe4 {[%clk 0:03:00.8]} 5. Nc3 {[%clk 0:03:01.5]}
5... Nxc3 {[%clk 0:03:01.2]} 6. dxc3 {[%clk 0:03:02.2]} 6... Be7 {[%clk
0:03:01.9]} 7. Bd3 {[%clk 0:03:02.3]} 7... O-O {[%clk 0:03:02.8]} 8. Bf4 {[%clk
0:02:57]} 8... Nd7 {[%clk 0:03:02.3]} 9. Qd2 {[%clk 0:02:57.5]} 9... Nf6 {[%clk
0:03:02.4]} 10. O-O-O {[%clk 0:02:57.1]} 10... c5 {[%clk 0:03:02.6]} 11. h4
{[%clk 0:02:54.9]} 11... b5 {[%clk 0:03:02.4]} 12. Ng5 {[%clk 0:02:41.8]} 12...
Qa5 {[%clk 0:02:59.4]} 13. Kb1 {[%clk 0:02:41.6]} 13... Be6 {[%clk 0:02:49.9]}
14. Nxe6 {[%clk 0:02:32.4]} 14... fxe6 {[%clk 0:02:50.8]} 15. Bg5 {[%clk
0:02:08]} 15... c4 {[%clk 0:02:47.6]} 16. Bxf6 {[%clk 0:01:51.4]} 16... Bxf6
{[%clk 0:02:45.3]} 17. Be2 {[%clk 0:01:48.6]} 17... d5 {[%clk 0:02:45]} 18. g4
{[%clk 0:01:47.1]} 18... b4 {[%clk 0:02:42]} 19. cxb4 {[%clk 0:01:43.9]} 19...
Qb6 {[%clk 0:02:32.9]} 20. c3 {[%clk 0:01:42.5]} 20... Qxf2 {[%clk 0:02:13.9]}
21. Rdf1 {[%clk 0:01:18.7]} 21... Qb6 {[%clk 0:02:13.2]} 22. g5 {[%clk
0:01:11.6]} 22... Be7 {[%clk 0:02:13.5]} 23. Bg4 {[%clk 0:01:03.5]} 23... a5
{[%clk 0:01:58.9]} 24. Re1 {[%clk 0:00:58.6]} 24... axb4 {[%clk 0:01:53]} 25.
Rxe6 {[%clk 0:00:57.9]} 25... Qa7 {[%clk 0:01:47.6]} 26. b3 {[%clk 0:00:09]}
26... bxc3 {[%clk 0:01:43.2]} 27. Qxd5 {[%clk 0:00:08.9]} 27... Qxa2+ {[%clk
0:01:40.7]} 28. Kc1 {[%clk 0:00:08.5]} 28... Qb2+ {[%clk 0:01:38.7]} 29. Kd1
{[%clk 0:00:08.9]} 29... Ra1# {[%clk 0:01:38.7]} 0-1

[Event "Late-Titled-Tuesday-Blitz-September-26-2023"]
[Site "Chess.com"]
[Date "2023.09.26"]
[Round "5"]
[White "nitpicker"]
[Black "aranibos"]
[Result "1-0"]
[WhiteElo "2246"]
[BlackElo "2275"]
[TimeControl "180+1"]
[EndTime "14:53:05 PDT"]
[Termination "nitpicker won on time"]

1. d4 {[%clk 0:03:00.9]} 1... Nf6 {[%clk 0:02:58.7]} 2. c4 {[%clk 0:03:01]} 2...
c5 {[%clk 0:02:58.3]} 3. d5 {[%clk 0:03:00.5]} 3... b5 {[%clk 0:02:58.8]} 4.
cxb5 {[%clk 0:03:00.7]} 4... a6 {[%clk 0:02:59.4]} 5. e3 {[%clk 0:03:00.8]} 5...
axb5 {[%clk 0:02:52.6]} 6. Bxb5 {[%clk 0:03:01.7]} 6... Qa5+ {[%clk 0:02:48.3]}
7. Nc3 {[%clk 0:03:01.1]} 7... Ba6 {[%clk 0:02:47.9]} 8. Be2 {[%clk 0:02:39.4]}
8... g6 {[%clk 0:02:40.6]} 9. Nf3 {[%clk 0:02:33.6]} 9... Bg7 {[%clk 0:02:40.4]}
10. O-O {[%clk 0:02:31.8]} 10... O-O {[%clk 0:02:36.6]} 11. e4 {[%clk
0:02:30.9]} 11... d6 {[%clk 0:02:34.7]} 12. h3 {[%clk 0:02:30.5]} 12... Nbd7
{[%clk 0:02:24.5]} 13. Re1 {[%clk 0:02:13.9]} 13... Bxe2 {[%clk 0:02:21.6]} 14.
Rxe2 {[%clk 0:02:11.4]} 14... Ne8 {[%clk 0:02:18.6]} 15. Qc2 {[%clk 0:02:02.8]}
15... Nc7 {[%clk 0:02:17.4]} 16. Bf4 {[%clk 0:01:59]} 16... Rfb8 {[%clk
0:02:13.4]} 17. e5 {[%clk 0:01:56.2]} 17... dxe5 {[%clk 0:01:56]} 18. Nxe5
{[%clk 0:01:55.3]} 18... Nxe5 {[%clk 0:01:51.5]} 19. Bxe5 {[%clk 0:01:55.8]}
19... Rb7 {[%clk 0:00:53.2]} 20. Bxg7 {[%clk 0:01:49.5]} 20... Kxg7 {[%clk
0:00:53]} 21. Rxe7 {[%clk 0:01:49.5]} 21... Rab8 {[%clk 0:00:52.7]} 22. Qe4
{[%clk 0:01:36.3]} 22... Rxb2 {[%clk 0:00:33.3]} 23. Qe5+ {[%clk 0:01:35.7]}
23... Kg8 {[%clk 0:00:32]} 24. Rxc7 {[%clk 0:01:30.9]} 24... Rf8 {[%clk
0:00:05.4]} 25. Ne4 {[%clk 0:01:25.5]} 1-0

[Event "Late-Titled-Tuesday-Blitz-September-26-2023"]
[Site "Chess.com"]
[Date "2023.09.26"]
[Round "5"]
[White "nihalsarin"]
[Black "lamomiajunior"]
[Result "0-1"]
[WhiteElo "3072"]
[BlackElo "2747"]
[TimeControl "180+1"]
[EndTime "14:53:10 PDT"]
[Termination "lamomiajunior won by resignation"]

1. a3 {[%clk 0:02:54.2]} 1... d5 {[%clk 0:02:58.4]} 2. g3 {[%clk 0:02:45.4]}
2... Nf6 {[%clk 0:02:56.2]} 3. e3 {[%clk 0:02:44]} 3... Bf5 {[%clk 0:02:52.5]}
4. h3 {[%clk 0:02:44.2]} 4... h6 {[%clk 0:02:52.6]} 5. d3 {[%clk 0:02:44.3]}
5... e6 {[%clk 0:02:53.3]} 6. Bg2 {[%clk 0:02:44.8]} 6... Be7 {[%clk 0:02:51.5]}
7. b3 {[%clk 0:02:45.6]} 7... O-O {[%clk 0:02:52]} 8. Bb2 {[%clk 0:02:46.5]}
8... a5 {[%clk 0:02:52.3]} 9. Nd2 {[%clk 0:02:47.3]} 9... a4 {[%clk 0:02:52.9]}
10. b4 {[%clk 0:02:46.9]} 10... c5 {[%clk 0:02:52.6]} 11. bxc5 {[%clk
0:02:47.8]} 11... Bxc5 {[%clk 0:02:53.4]} 12. Ne2 {[%clk 0:02:48.6]} 12... Nc6
{[%clk 0:02:53.2]} 13. g4 {[%clk 0:02:49.3]} 13... Bh7 {[%clk 0:02:51.6]} 14.
Ng3 {[%clk 0:02:50.1]} 14... Bd6 {[%clk 0:02:17.2]} 15. h4 {[%clk 0:02:49]}
15... Bxg3 {[%clk 0:02:11.9]} 16. fxg3 {[%clk 0:02:49.9]} 16... Qb6 {[%clk
0:02:12.3]} 17. Bxf6 {[%clk 0:02:39.4]} 17... Qxe3+ {[%clk 0:02:12.4]} 18. Qe2
{[%clk 0:02:39.1]} 18... Qxe2+ {[%clk 0:02:12.7]} 19. Kxe2 {[%clk 0:02:39.2]}
19... gxf6 {[%clk 0:02:13.6]} 20. Ke3 {[%clk 0:02:36]} 20... Rac8 {[%clk
0:02:08.7]} 21. Rhc1 {[%clk 0:02:31.8]} 21... Ne5 {[%clk 0:02:05.4]} 22. Bf3
{[%clk 0:02:32.5]} 22... Rc7 {[%clk 0:01:52.5]} 23. Bd1 {[%clk 0:02:27.6]} 23...
Rfc8 {[%clk 0:01:47.3]} 24. Rcb1 {[%clk 0:02:27.7]} 24... Nc6 {[%clk 0:00:57.9]}
25. Nf3 {[%clk 0:02:23.9]} 25... e5 {[%clk 0:00:51.6]} 26. g5 {[%clk 0:02:14.3]}
26... hxg5 {[%clk 0:00:49.9]} 27. hxg5 {[%clk 0:02:15.2]} 27... e4 {[%clk
0:00:46.8]} 28. g6 {[%clk 0:02:06.2]} 28... Bxg6 {[%clk 0:00:42.4]} 29. Nh4
{[%clk 0:02:06.8]} 29... d4+ {[%clk 0:00:40.8]} 30. Kd2 {[%clk 0:02:06.4]} 30...
e3+ {[%clk 0:00:39]} 31. Ke1 {[%clk 0:02:07.1]} 31... Ne5 {[%clk 0:00:35.4]} 32.
Rb4 {[%clk 0:02:07.5]} 32... Rxc2 {[%clk 0:00:20.9]} 33. Bxc2 {[%clk 0:01:52.9]}
33... Rxc2 {[%clk 0:00:20.9]} 34. Rxd4 {[%clk 0:01:51.7]} 34... Nxd3+ {[%clk
0:00:19.5]} 35. Rxd3 {[%clk 0:01:46.3]} 35... Bxd3 {[%clk 0:00:20.4]} 36. Rd1
{[%clk 0:01:46.4]} 36... Re2+ {[%clk 0:00:20.5]} 37. Kf1 {[%clk 0:01:46.3]}
37... Rf2+ {[%clk 0:00:17.5]} 38. Kg1 {[%clk 0:01:46.1]} 38... e2 {[%clk
0:00:16.9]} 39. Kxf2 {[%clk 0:01:41.4]} 39... exd1=Q {[%clk 0:00:16.9]} 0-1

[Event "Late-Titled-Tuesday-Blitz-September-26-2023"]
[Site "Chess.com"]
[Date "2023.09.26"]
[Round "5"]
[White "Vadim_Biliy"]
[Black "ZuraTqebuchava"]
[Result "1-0"]
[WhiteElo "2313"]
[BlackElo "2235"]
[TimeControl "180+1"]
[EndTime "14:53:13 PDT"]
[Termination "Vadim_Biliy won by resignation"]

1. d4 {[%clk 0:03:00.9]} 1... d5 {[%clk 0:02:59.6]} 2. Nf3 {[%clk 0:03:00.3]}
2... Nf6 {[%clk 0:02:58.7]} 3. e3 {[%clk 0:03:00.4]} 3... e6 {[%clk 0:02:58.9]}
4. c4 {[%clk 0:03:00.1]} 4... Bb4+ {[%clk 0:02:56.2]} 5. Bd2 {[%clk 0:02:56.7]}
5... Bxd2+ {[%clk 0:02:51.5]} 6. Nbxd2 {[%clk 0:02:56.6]} 6... dxc4 {[%clk
0:02:48.5]} 7. Nxc4 {[%clk 0:02:56]} 7... O-O {[%clk 0:02:48.1]} 8. Be2 {[%clk
0:02:53]} 8... b6 {[%clk 0:02:44.5]} 9. O-O {[%clk 0:02:47.2]} 9... Bb7 {[%clk
0:02:44.4]} 10. Nfe5 {[%clk 0:02:43.7]} 10... Nbd7 {[%clk 0:02:38.8]} 11. Bf3
{[%clk 0:02:42.1]} 11... Nxe5 {[%clk 0:02:27.1]} 12. Nxe5 {[%clk 0:02:38.5]}
12... Nd5 {[%clk 0:02:20]} 13. Rc1 {[%clk 0:02:33.4]} 13... Rc8 {[%clk
0:01:38.9]} 14. Nc6 {[%clk 0:02:17.1]} 14... Bxc6 {[%clk 0:01:38.7]} 15. Rxc6
{[%clk 0:02:15.7]} 15... a5 {[%clk 0:01:27.2]} 16. a3 {[%clk 0:02:13.3]} 16...
Qd7 {[%clk 0:01:25.6]} 17. Qc2 {[%clk 0:02:10.2]} 17... Ne7 {[%clk 0:01:00.2]}
18. Rc4 {[%clk 0:02:08.8]} 18... c6 {[%clk 0:00:49.8]} 19. Rc1 {[%clk
0:02:06.3]} 19... b5 {[%clk 0:00:25.1]} 20. Rc5 {[%clk 0:02:02.7]} 20... Nd5
{[%clk 0:00:18.2]} 21. Rxc6 {[%clk 0:01:57.2]} 21... Rxc6 {[%clk 0:00:11.5]} 22.
Qxc6 {[%clk 0:01:56.2]} 22... Qxc6 {[%clk 0:00:09.6]} 23. Rxc6 {[%clk
0:01:55.4]} 23... b4 {[%clk 0:00:09.9]} 24. Bxd5 {[%clk 0:01:48.4]} 24... exd5
{[%clk 0:00:08.6]} 25. axb4 {[%clk 0:01:48.3]} 25... axb4 {[%clk 0:00:08.5]} 26.
Rb6 {[%clk 0:01:48.3]} 26... Rc8 {[%clk 0:00:07.6]} 27. g3 {[%clk 0:01:47.9]}
27... g6 {[%clk 0:00:04.2]} 28. Rxb4 {[%clk 0:01:45.9]} 28... Rc2 {[%clk
0:00:04.1]} 29. Rb5 {[%clk 0:01:43.9]} 29... Kg7 {[%clk 0:00:03.9]} 30. b4
{[%clk 0:01:38.7]} 30... Kf6 {[%clk 0:00:03.5]} 31. Rxd5 {[%clk 0:01:38.3]}
31... Rb2 {[%clk 0:00:03.2]} 32. b5 {[%clk 0:01:38]} 1-0

[Event "Late-Titled-Tuesday-Blitz-September-26-2023"]
[Site "Chess.com"]
[Date "2023.09.26"]
[Round "5"]
[White "MagnusCarlsen"]
[Black "OparinGrigoriy"]
[Result "1-0"]
[WhiteElo "3285"]
[BlackElo "2977"]
[TimeControl "180+1"]
[EndTime "14:53:20 PDT"]
[Termination "MagnusCarlsen won by resignation"]

1. e4 {[%clk 0:02:59.1]} 1... c5 {[%clk 0:02:55.1]} 2. Nf3 {[%clk 0:02:55.7]}
2... e6 {[%clk 0:02:55.3]} 3. a3 {[%clk 0:02:53.6]} 3... Nc6 {[%clk 0:02:53.6]}
4. b4 {[%clk 0:02:51.3]} 4... cxb4 {[%clk 0:02:49.1]} 5. axb4 {[%clk 0:02:45]}
5... Bxb4 {[%clk 0:02:50]} 6. c3 {[%clk 0:02:44.9]} 6... Be7 {[%clk 0:02:49.1]}
7. d4 {[%clk 0:02:38.1]} 7... d5 {[%clk 0:02:46.5]} 8. e5 {[%clk 0:02:38.4]}
8... Nh6 {[%clk 0:02:44.5]} 9. Bd3 {[%clk 0:02:37.8]} 9... Nf5 {[%clk
0:02:43.7]} 10. O-O {[%clk 0:02:28.5]} 10... O-O {[%clk 0:02:43.4]} 11. Nbd2
{[%clk 0:02:20.6]} 11... a5 {[%clk 0:02:36.7]} 12. g4 {[%clk 0:02:17.3]} 12...
Nh4 {[%clk 0:02:36.4]} 13. Nxh4 {[%clk 0:02:17.3]} 13... Bxh4 {[%clk 0:02:37.3]}
14. f4 {[%clk 0:02:17.7]} 14... Be7 {[%clk 0:02:21.8]} 15. Nf3 {[%clk
0:02:17.3]} 15... f5 {[%clk 0:01:59.1]} 16. gxf5 {[%clk 0:02:16.1]} 16... exf5
{[%clk 0:01:59.3]} 17. Kh1 {[%clk 0:02:16.8]} 17... b6 {[%clk 0:01:43.1]} 18.
Rg1 {[%clk 0:02:16.8]} 18... Ba6 {[%clk 0:01:43.4]} 19. Bxa6 {[%clk 0:02:07.5]}
19... Rxa6 {[%clk 0:01:43.4]} 20. Ra2 {[%clk 0:02:07.4]} 20... Qc8 {[%clk
0:01:14.2]} 21. Rag2 {[%clk 0:02:05.1]} 21... Rf7 {[%clk 0:01:14.9]} 22. Qb3
{[%clk 0:01:52.5]} 22... Qe6 {[%clk 0:01:03.5]} 23. Qb5 {[%clk 0:01:48.9]} 23...
Ra8 {[%clk 0:01:02.2]} 24. Ba3 {[%clk 0:01:48.4]} 24... Rd8 {[%clk 0:00:43.9]}
25. Bxe7 {[%clk 0:01:45]} 25... Rxe7 {[%clk 0:00:44.8]} 26. Qxb6 {[%clk
0:01:38.4]} 26... Qc8 {[%clk 0:00:43]} 27. h4 {[%clk 0:01:27.8]} 27... a4 {[%clk
0:00:40.9]} 28. Qc5 {[%clk 0:01:26.7]} 28... Ra7 {[%clk 0:00:38]} 29. c4 {[%clk
0:01:16.3]} 29... Qe6 {[%clk 0:00:28.8]} 30. Qxa7 {[%clk 0:01:10.2]} 30... Nxa7
{[%clk 0:00:28.4]} 31. Rxg7+ {[%clk 0:01:10.6]} 31... Kh8 {[%clk 0:00:28.9]} 32.
Ng5 {[%clk 0:01:11]} 1-0